[Event "Polish Youth Ekstraliga 2022"]
[Site "Lublin"]
[Date "2022.07.03"]
[Round "9.20"]
[White "Meers, Hubert"]
[Black "Redzisz, Michal"]
[Result "1/2-1/2"]
[ECO "B19"]
[WhiteElo "2013"]
[BlackElo "2236"]
[Annotator "TA"]
[PlyCount "84"]
[EventDate "2022.06.24"]
[EventType "team-tourn"]
[EventCountry "POL"]
[SourceTitle "playchess.com"]
[Source "ChessBase"]
[SourceQuality "1"]
[TimeControl "40/5400+30:1800+30"]

{[%evp 22,84,25,25,19,16,16,24,24,0,43,23,37,14,0,0,10,0,21,21,21,21,21,21,36,21,36,21,36,36,36,36,45,47,83,78,76,49,59,36,36,0,0,0,36,36,36,36,36,36,36,36,36,0,36,0,36,0,121,121,121,121,121,115,106]} 1. e4 {[%emt 0:00:01]} c6 {[%emt 0:02:26]} 2. d4 {[%emt 0:00:02]} d5 {[%emt 0:00:05]} 3. Nd2 {[%emt 0:00:03]} dxe4 {[%emt 0:00:04]} 4. Nxe4 {[%emt 0:00:04]} Bf5 {[%emt 0:01:11]} 5. Ng3 {[%emt 0:00:04]} Bg6 {[%emt 0:00:02]} 6. h4 {[%emt 0:00:03]} h6 {[%emt 0:00:03]} 7. Nf3 {[%emt 0:00:03]} Nd7 {[%emt 0:00:43]} 8. h5 {[%emt 0:00:03]} Bh7 {[%emt 0:00:02]} 9. Bd3 {[%emt 0:00:03]} Bxd3 {[%emt 0:00:02]} 10. Qxd3 {[%emt 0:00:04]} e6 {[%emt 0:00:07]} 11. Bd2 $1 {[%emt 0:00:04] The main line 11.Bd2 scores better than 11.Bf4.} Ngf6 {[%emt 0:04:35]} 12. O-O-O {[%emt 0:00:06][%cal Ba1d1,Bd1d2,Bd2e2][%mdl 32]} a5 {[%emt 0:08:07] B19: Classical Caro-Kann: 4...Bf5 main line.} 13. Ne4 {[%emt 0:04:05]} Nxe4 {[%emt 0:00:05]} 14. Qxe4 {[%emt 0:00:05]} Nf6 {[%emt 0:00:01] White has an edge.} 15. Qe2 {[%emt 0:02:42]} Bb4 {[%emt 0:00:02]} 16. Kb1 {[%emt 0:05:42]} Bxd2 {[%emt 0:09:21]} 17. Rxd2 {[%emt 0:02:51]} Qd5 {[%emt 0:05:37]} 18. Qe5 {[%emt 0:03:59] [#]} a4 $146 {[%emt 0:01:44]} ({Predecessor:} 18... Qxe5 19. dxe5 Nd5 20. c4 Nb6 21. b3 Ke7 22. Rhd1 c5 23. Rd6 Rhd8 24. Kc2 Rxd6 25. Rxd6 {0-1 (63) Kiss,B (1659)-Rikk,Z (1595) Hungary 2009}) 19. Qxd5 {[%emt 0:02:01]} cxd5 {[%emt 0:13:05]} 20. a3 {[%emt 0:00:04]} Ke7 {[%emt 0:02:07]} 21. Ne5 {[%emt 0:03:05]} Ne4 {[%emt 0:01:14]} 22. Re2 {[%emt 0:00:04]} Rhc8 {[%emt 0:04:00]} 23. g4 {[%emt 0:07:09]} Ra6 {[%emt 0:04:18]} 24. Rh3 {[%emt 0:04:06]} Rb6 {[%emt 0:01:30]} 25. Ka1 {[%emt 0:03:42]} f6 {[%emt 0:05:01]} 26. Ng6+ {[%emt 0:02:19]} Kf7 {[%emt 0:04:05]} 27. Rhe3 {[%emt 0:03:22]} Rc4 {[%emt 0:02:30]} 28. f3 {[%emt 0:02:36]} Ng5 {[%emt 0:01:36]} ({Not} 28... Ng3 29. Rg2 $16) 29. Rd3 {[%emt 0:03:57] White is more active.} Ke8 {[%emt 0:02:28]} 30. Kb1 {[%emt 0:01:48]} Kd7 {[%emt 0:01:01]} 31. Nf8+ {[%emt 0:01:48]} Ke7 {[%emt 0:03:27]} (31... Ke8 $5 {[%cal Re8f8]} 32. Ng6 Kd7 $14) 32. Ng6+ {[%emt 0:00:06]} Kd6 {[%emt 0:00:02]} 33. c3 {[%emt 0:08:00]} Rc8 {[%emt 0:03:18]} 34. Rde3 {[%emt 0:03:07]} Rbc6 {[%emt 0:06:33]} 35. Kc2 {[%emt 0:16:20]} Re8 {[%emt 0:04:20]} 36. Nh4 {[%emt 0:03:06]} Rec8 {[%emt 0:02:34]} 37. Ng6 {[%emt 0:00:05]} Re8 {[%emt 0:00:59]} 38. Nh4 {[%emt 0:00:06]} Kd7 {[%emt 0:00:30]} 39. Ng6 {[%emt 0:01:28]} Nf7 {[%emt 0:02:08]} (39... Kd6 $11) 40. Nf4 $16 {[%emt 0:00:00] White is better.} Rd6 {[%emt 0:00:00]} 41. Nd3 {[%emt 0:05:30] [#] And now Nc5+ would win.} b6 {[%emt 0:00:38] Prevents Nc5+.} 42. f4 {[%emt 0:00:58]} Nd8 {[%emt 0:05:25] Weighted Error Value: White=0.09 (flawless) /Black=0.15 (very precise)} 1/2-1/2

[Event "Polish Youth Ekstraliga 2022"]
[Site "Lublin"]
[Date "2022.07.03"]
[Round "9.21"]
[White "Warchol, Kamil"]
[Black "Zielonka, Adam"]
[Result "1/2-1/2"]
[ECO "B46"]
[WhiteElo "2079"]
[BlackElo "1988"]
[Annotator "NA RC"]
[PlyCount "84"]
[EventDate "2022.06.24"]
[EventType "team-tourn"]
[EventCountry "POL"]
[SourceTitle "playchess.com"]
[Source "ChessBase"]
[SourceQuality "1"]
[TimeControl "40/5400+30:1800+30"]

1. e4 {[%emt 0:00:04]} c5 {[%emt 0:00:04]} 2. Nf3 {[%emt 0:00:03]} e6 {[%emt 0:00:03]} 3. d4 {[%emt 0:00:08]} cxd4 {[%emt 0:00:05]} 4. Nxd4 {[%emt 0:00:02]} Nc6 {[%emt 0:00:05]} 5. Nc3 {[%emt 0:00:18]} a6 {[%emt 0:00:05]} 6. g3 {[%emt 0:00:42]} d6 {[%emt 0:00:06]} 7. Nxc6 {[%emt 0:00:36]} bxc6 {[%emt 0:00:05]} 8. Bg2 {[%emt 0:00:04]} d5 {[%emt 0:03:37]} 9. O-O {[%emt 0:04:14]} Nf6 {[%emt 0:00:21]} 10. Re1 {[%emt 0:01:14]} Be7 {[%emt 0:01:15]} 11. e5 {[%emt 0:02:02]} Nd7 {[%emt 0:00:07]} 12. Qg4 {[%emt 0:00:03]} g6 {[%emt 0:01:19]} 13. Bh6 {[%emt 0:01:58]} Bf8 {[%emt 0:01:13]} 14. Bxf8 {[%emt 0:21:16]} Kxf8 {[%emt 0:00:29]} 15. b4 {[%emt 0:03:40]} h5 {[%emt 0:06:54]} 16. Qd4 {[%emt 0:07:10]} Qb6 {[%emt 0:01:15]} 17. Qxb6 {[%emt 0:01:24]} Nxb6 {[%emt 0:00:05]} 18. Ne2 {[%emt 0:00:07]} Bd7 {[%emt 0:01:39]} 19. Nd4 {[%emt 0:08:23]} a5 {[%emt 0:03:24]} 20. a3 {[%emt 0:09:10]} axb4 {[%emt 0:02:05]} 21. axb4 {[%emt 0:00:36]} Ke7 {[%emt 0:00:29]} 22. Bf1 {[%emt 0:13:53]} Rhb8 {[%emt 0:05:58]} 23. Reb1 {[%emt 0:02:46]} Rxa1 {[%emt 0:08:03]} 24. Rxa1 {[%emt 0:00:02]} Kd8 {[%emt 0:00:08]} 25. Nb3 {[%emt 0:02:59]} Ra8 {[%emt 0:00:34]} 26. Rxa8+ {[%emt 0:02:07]} Nxa8 {[%emt 0:00:05]} 27. f4 {[%emt 0:04:20]} Bc8 {[%emt 0:07:41]} 28. Kf2 {[%emt 0:01:44]} Kc7 {[%emt 0:00:29]} 29. Ke3 {[%emt 0:02:30]} Kb6 {[%emt 0:01:47]} 30. Nc5 {[%emt 0:00:23]} Nc7 {[%emt 0:00:41]} 31. Kd4 {[%emt 0:02:38]} Ne8 {[%emt 0:04:05]} 32. h3 {[%emt 0:01:42]} Ng7 {[%emt 0:02:07]} 33. g4 {[%emt 0:00:23]} hxg4 {[%emt 0:01:20]} 34. hxg4 {[%emt 0:00:01]} Ne8 {[%emt 0:03:58]} 35. Na4+ {[%emt 0:00:10]} Kc7 {[%emt 0:00:20]} 36. Bd3 {[%emt 0:00:48]} Ng7 {[%emt 0:01:36]} 37. Kc5 {[%emt 0:00:42]} Ne8 {[%emt 0:00:50]} 38. Nc3 {[%emt 0:01:05]} f5 {[%emt 0:08:18]} 39. exf6 {[%emt 0:05:56]} Nxf6 {[%emt 0:00:05]} 40. g5 {[%emt 0:00:00]} Nh5 {[%emt 0:00:00]} 41. Ne2 {[%emt 0:02:19]} Ng7 {[%emt 0:04:25]} 42. Bxg6 {[%emt 0:01:01]} e5 {[%emt 0:00:15]} 1/2-1/2

[Event "Polish Youth Ekstraliga 2022"]
[Site "Lublin"]
[Date "2022.07.03"]
[Round "9.22"]
[White "Liskiewicz, Jakub"]
[Black "Krol, Jan"]
[Result "0-1"]
[ECO "E43"]
[WhiteElo "1839"]
[BlackElo "1668"]
[Annotator "NA RC"]
[PlyCount "139"]
[EventDate "2022.06.24"]
[EventType "team-tourn"]
[EventCountry "POL"]
[SourceTitle "playchess.com"]
[Source "ChessBase"]
[SourceQuality "1"]
[TimeControl "40/5400+30:1800+30"]

1. d4 {[%emt 0:00:03]} Nf6 {[%emt 0:00:04]} 2. c4 {[%emt 0:00:07]} e6 {[%emt 0:00:03]} 3. Nc3 {[%emt 0:00:07]} Bb4 {[%emt 0:00:05]} 4. e3 {[%emt 0:00:07]} b6 {[%emt 0:00:21]} 5. Bd3 {[%emt 0:01:03]} Bb7 {[%emt 0:01:12]} 6. f3 {[%emt 0:00:24]} c5 {[%emt 0:09:43]} 7. Nge2 {[%emt 0:01:50]} cxd4 {[%emt 0:03:29]} 8. exd4 {[%emt 0:00:09]} O-O {[%emt 0:08:45]} 9. O-O {[%emt 0:00:09]} d5 {[%emt 0:06:16]} 10. a3 {[%emt 0:02:42]} Bxc3 {[%emt 0:04:35]} 11. Nxc3 {[%emt 0:00:27]} dxc4 {[%emt 0:00:27]} 12. Bxc4 {[%emt 0:00:11]} Nc6 {[%emt 0:01:56]} 13. Be3 {[%emt 0:05:13]} Rc8 {[%emt 0:01:15]} 14. Ba2 {[%emt 0:07:28]} Na5 {[%emt 0:22:29]} 15. Qd3 {[%emt 0:05:34]} Nd5 {[%emt 0:05:43]} 16. Bb1 {[%emt 0:04:18]} f5 {[%emt 0:00:03]} 17. Ba2 {[%emt 0:00:52]} Kh8 {[%emt 0:05:24]} 18. Rfe1 {[%emt 0:06:24]} Nxc3 {[%emt 0:02:09]} 19. bxc3 {[%emt 0:00:14]} Bd5 {[%emt 0:00:02]} 20. Bf4 {[%emt 0:02:25]} Nc4 {[%emt 0:02:33]} 21. Re2 {[%emt 0:08:42]} Qe7 {[%emt 0:01:57]} 22. Bb3 {[%emt 0:12:11]} Qh4 {[%emt 0:04:43]} 23. Bg3 {[%emt 0:01:19]} Qh5 {[%emt 0:02:21]} 24. Bc2 {[%emt 0:17:23]} Rf6 {[%emt 0:00:53]} 25. f4 {[%emt 0:07:06]} Rf7 {[%emt 0:01:51]} 26. Rae1 {[%emt 0:01:10]} Rfc7 {[%emt 0:01:25]} 27. Bd1 {[%emt 0:01:42]} Qf7 {[%emt 0:00:23]} 28. Bb3 {[%emt 0:02:59]} Be4 {[%emt 0:00:24]} 29. Rxe4 {[%emt 0:07:41]} fxe4 {[%emt 0:00:06]} 30. Qxe4 {[%emt 0:00:07]} Nd2 {[%emt 0:01:37]} 31. Qc2 {[%emt 0:02:23]} Nxb3 {[%emt 0:00:08]} 32. Qxb3 {[%emt 0:00:04]} Rxc3 {[%emt 0:00:43]} 33. Qb2 {[%emt 0:00:36]} Rc2 {[%emt 0:00:33]} 34. Qb1 {[%emt 0:00:40]} Qb7 {[%emt 0:00:52]} 35. Bf2 {[%emt 0:00:30]} Qc6 {[%emt 0:00:35]} 36. Qb4 {[%emt 0:01:12]} Rc1 {[%emt 0:02:02]} 37. h3 {[%emt 0:00:53]} Rxe1+ {[%emt 0:00:30]} 38. Bxe1 {[%emt 0:00:09]} h6 {[%emt 0:00:25]} 39. Qd2 {[%emt 0:01:36]} Qe4 {[%emt 0:00:17]} 40. Qf2 {[%emt 0:00:00]} Rc1 {[%emt 0:00:00]} 41. Kf1 {[%emt 0:04:10]} Qd3+ {[%emt 0:01:17]} 42. Qe2 {[%emt 0:00:57]} Qxd4 {[%emt 0:00:10]} 43. Qf3 {[%emt 0:06:22]} Qd5 {[%emt 0:02:01]} 44. Qe3 {[%emt 0:01:00]} Qc4+ {[%emt 0:01:04]} 45. Kf2 {[%emt 0:01:47]} Qc5 {[%emt 0:00:22]} 46. Bd2 {[%emt 0:00:42]} Qxe3+ {[%emt 0:00:50]} 47. Kxe3 {[%emt 0:00:09]} Rg1 {[%emt 0:00:08]} 48. Kf3 {[%emt 0:00:52]} Rb1 {[%emt 0:00:05]} 49. Bb4 {[%emt 0:02:35]} Kg8 {[%emt 0:00:39]} 50. Ke4 {[%emt 0:01:43]} Kf7 {[%emt 0:00:17]} 51. Kd4 {[%emt 0:03:06]} a5 {[%emt 0:00:18]} 52. Bc3 {[%emt 0:01:49]} Rb3 {[%emt 0:00:07]} 53. a4 {[%emt 0:00:19]} Ra3 {[%emt 0:00:04]} 54. Kc4 {[%emt 0:00:06]} Rxa4+ {[%emt 0:00:07]} 55. Kb5 {[%emt 0:00:06]} Rxf4 {[%emt 0:00:09]} 56. Kxb6 {[%emt 0:00:11]} a4 {[%emt 0:00:02]} 57. Be5 {[%emt 0:14:18]} Re4 {[%emt 0:00:07]} 58. Bd6 {[%emt 0:00:10]} Rd4 {[%emt 0:00:18]} 59. Bc5 {[%emt 0:00:50]} Rd5 {[%emt 0:00:08]} 60. Bb4 {[%emt 0:00:32]} e5 {[%emt 0:00:08]} 61. Kc6 {[%emt 0:00:16]} Ke6 {[%emt 0:00:11]} 62. g4 {[%emt 0:00:25]} g6 {[%emt 0:00:09]} 63. h4 {[%emt 0:00:46]} h5 {[%emt 0:00:04]} 64. gxh5 {[%emt 0:00:37]} gxh5 {[%emt 0:00:04]} 65. Bf8 {[%emt 0:00:29]} e4 {[%emt 0:00:07]} 66. Bb4 {[%emt 0:00:29]} e3 {[%emt 0:00:04]} 67. Kb6 {[%emt 0:00:31]} e2 {[%emt 0:00:05]} 68. Ka6 {[%emt 0:00:28]} a3 {[%emt 0:00:08]} 69. Kb7 {[%emt 0:00:32]} Rb5+ {[%emt 0:00:06]} 70. Kc6 {[%emt 0:01:03]} 0-1

[Event "Polish Youth Ekstraliga 2022"]
[Site "Lublin"]
[Date "2022.07.03"]
[Round "9.23"]
[White "Adamczyk, Zuzanna"]
[Black "Zabrzanska, Weronika"]
[Result "0-1"]
[ECO "D35"]
[WhiteElo "1909"]
[BlackElo "1882"]
[Annotator "NA RC"]
[PlyCount "94"]
[EventDate "2022.06.24"]
[EventType "team-tourn"]
[EventCountry "POL"]
[SourceTitle "playchess.com"]
[Source "ChessBase"]
[SourceQuality "1"]
[TimeControl "40/5400+30:1800+30"]

1. d4 {[%emt 0:00:04]} Nf6 {[%emt 0:00:08]} 2. c4 {[%emt 0:00:07]} e6 {[%emt 0:00:04]} 3. Nc3 {[%emt 0:00:06]} d5 {[%emt 0:00:10]} 4. cxd5 {[%emt 0:00:13]} exd5 {[%emt 0:00:09]} 5. Bg5 {[%emt 0:00:23]} c6 {[%emt 0:00:15]} 6. e3 {[%emt 0:00:10]} Bd6 {[%emt 0:00:05]} 7. Bd3 {[%emt 0:00:49]} O-O {[%emt 0:00:13]} 8. Nf3 {[%emt 0:01:09]} Re8 {[%emt 0:08:28]} 9. Qc2 {[%emt 0:01:17]} h6 {[%emt 0:00:43]} 10. Bh4 {[%emt 0:00:13]} a5 {[%emt 0:01:40]} 11. Bg3 {[%emt 0:11:19]} Na6 {[%emt 0:06:30]} 12. Bxd6 {[%emt 0:06:20]} Qxd6 {[%emt 0:02:37]} 13. a3 {[%emt 0:00:07]} Nc7 {[%emt 0:04:04]} 14. O-O {[%emt 0:03:51]} Ne6 {[%emt 0:02:30]} 15. Rab1 {[%emt 0:22:01]} Ng5 {[%emt 0:02:53]} 16. Nxg5 {[%emt 0:20:37]} hxg5 {[%emt 0:00:09]} 17. Bf5 {[%emt 0:04:06]} g6 {[%emt 0:09:38]} 18. Bxc8 {[%emt 0:03:01]} Raxc8 {[%emt 0:01:14]} 19. Qe2 {[%emt 0:01:30]} Kg7 {[%emt 0:00:30]} 20. Qf3 {[%emt 0:04:46]} g4 {[%emt 0:05:34]} 21. Qg3 {[%emt 0:02:50]} Qe6 {[%emt 0:01:03]} 22. h3 {[%emt 0:07:11]} Rh8 {[%emt 0:04:25]} 23. hxg4 {[%emt 0:02:14]} Nxg4 {[%emt 0:01:34]} 24. Rfe1 {[%emt 0:00:50]} Qf5 {[%emt 0:01:22]} 25. f3 {[%emt 0:01:31]} Nf6 {[%emt 0:01:06]} 26. Qe5 {[%emt 0:02:44]} Qd7 {[%emt 0:00:07]} 27. Qg3 {[%emt 0:01:43]} Rh5 {[%emt 0:06:21]} 28. Kf2 {[%emt 0:00:28]} Rch8 {[%emt 0:00:13]} 29. Ke2 {[%emt 0:01:21]} Qf5 {[%emt 0:02:29]} 30. Rbd1 {[%emt 0:01:14]} Rg5 {[%emt 0:02:18]} 31. Qf2 {[%emt 0:00:29]} Rh2 {[%emt 0:00:20]} 32. Rg1 {[%emt 0:00:31]} b5 {[%emt 0:00:10]} 33. Kf1 {[%emt 0:00:47]} Nh5 {[%emt 0:02:39]} 34. Ke1 {[%emt 0:00:23]} Ng3 {[%emt 0:00:48]} 35. b4 {[%emt 0:00:42]} axb4 {[%emt 0:01:07]} 36. axb4 {[%emt 0:00:01]} Qe6 {[%emt 0:03:00]} 37. Rd3 {[%emt 0:00:39]} Qd6 {[%emt 0:01:36]} 38. Na2 {[%emt 0:00:19]} Nh1 {[%emt 0:01:45]} 39. Qc2 {[%emt 0:01:03]} Qg3+ {[%emt 0:00:14]} 40. Kf1 {[%emt 0:00:00]} Rf5 {[%emt 0:00:00]} 41. Qe2 {[%emt 0:21:47]} Qh4 {[%emt 0:16:12]} 42. Qe1 {[%emt 0:00:50]} Rxf3+ {[%emt 0:02:21]} 43. Ke2 {[%emt 0:01:34]} Rf2+ {[%emt 0:01:57]} 44. Kd1 {[%emt 0:00:10]} Qg4+ {[%emt 0:03:29]} 45. Kc1 {[%emt 0:00:54]} Rxa2 {[%emt 0:00:09]} 46. Kb1 {[%emt 0:01:50]} Raxg2 {[%emt 0:01:06]} 47. Rf1 {[%emt 0:02:16]} Qe4 {[%emt 0:01:09]} 0-1

[Event "Polish Youth Ekstraliga 2022"]
[Site "Lublin"]
[Date "2022.07.03"]
[Round "9.24"]
[White "Polakiewicz, Blanka"]
[Black "Gaszka, Zuzanna"]
[Result "0-1"]
[ECO "C60"]
[WhiteElo "1151"]
[BlackElo "1621"]
[Annotator "NA RC"]
[PlyCount "126"]
[EventDate "2022.06.24"]
[EventType "team-tourn"]
[EventCountry "POL"]
[SourceTitle "playchess.com"]
[Source "ChessBase"]
[SourceQuality "1"]
[TimeControl "40/5400+30:1800+30"]

1. e4 e5 2. Nf3 Nc6 3. Bb5 g6 4. c3 Bg7 5. d4 exd4 6. cxd4 a6 7. Ba4 b5 8. Bb3 Nge7 9. O-O O-O 10. d5 Na5 11. Bc2 d6 12. Nc3 Nc4 13. Rb1 h6 14. Re1 Kh7 15. Bd3 Nb6 16. Be3 Nd7 17. Qd2 Nf6 18. h3 Re8 19. a3 Bb7 20. Qc2 Rc8 21. Rbc1 c5 22. Qe2 Neg8 23. Nd2 Nd7 24. Rb1 Ne5 25. Bf4 Nxd3 26. Qxd3 Nf6 27. Qf3 Qd7 28. Qd3 c4 29. Qf3 Re7 30. Re2 a5 31. Ra1 Rce8 32. a4 b4 33. Nb5 c3 34. bxc3 bxc3 35. Nxc3 Nxd5 36. Nxd5 Bxd5 37. Rae1 Bc6 38. Nc4 d5 39. exd5 Rxe2 40. Rxe2 Rxe2 41. Qxe2 Qxd5 42. Ne3 Qd7 43. Nc4 Bc3 44. Be5 Qd5 45. f3 Qe6 46. Kf2 Bxe5 47. Nxe5 Bxa4 48. Qc4 Qxe5 49. Qxa4 Qb2+ 50. Kg1 Qb4 51. Qa2 Kg8 52. Kf1 a4 53. Ke2 a3 54. Kd1 Qc3 55. Qc2 Qxc2+ 56. Kxc2 Kg7 57. Kb3 Kf6 58. Kxa3 Ke5 59. g3 Kd4 60. f4 Ke4 61. Kb3 Kf3 62. h4 Kxg3 63. h5 gxh5 0-1

[Event "Polish Youth Ekstraliga 2022"]
[Site "Lublin"]
[Date "2022.07.03"]
[Round "9.25"]
[White "Kutowski, Marcel"]
[Black "Kazmierowski, Tymon"]
[Result "1/2-1/2"]
[ECO "B51"]
[WhiteElo "1954"]
[BlackElo "2020"]
[Annotator "NA RC"]
[PlyCount "65"]
[EventDate "2022.06.24"]
[EventType "team-tourn"]
[EventCountry "POL"]
[SourceTitle "playchess.com"]
[Source "ChessBase"]
[SourceQuality "1"]
[TimeControl "40/5400+30:1800+30"]

1. e4 {[%emt 0:00:08]} c5 {[%emt 0:00:04]} 2. Nf3 {[%emt 0:00:05]} d6 {[%emt 0:00:03]} 3. Bb5+ {[%emt 0:00:18]} Nd7 {[%emt 0:00:06]} 4. O-O {[%emt 0:00:07]} Ngf6 {[%emt 0:00:59]} 5. Re1 {[%emt 0:00:43]} a6 {[%emt 0:00:33]} 6. Bf1 {[%emt 0:00:43]} b5 {[%emt 0:03:21]} 7. a4 {[%emt 0:04:04]} Bb7 {[%emt 0:06:58]} 8. axb5 {[%emt 0:11:27]} axb5 {[%emt 0:00:09]} 9. Rxa8 {[%emt 0:00:05]} Qxa8 {[%emt 0:00:07]} 10. Bxb5 {[%emt 0:00:15]} Bxe4 {[%emt 0:01:12]} 11. d4 {[%emt 0:07:09]} Bc6 {[%emt 0:13:09]} 12. Bxc6 {[%emt 0:02:03]} Qxc6 {[%emt 0:00:19]} 13. Nc3 {[%emt 0:03:20]} g6 {[%emt 0:09:05]} 14. Bf4 {[%emt 0:12:07]} Nh5 {[%emt 0:12:32]} 15. Bg5 {[%emt 0:13:10]} f6 {[%emt 0:09:05]} 16. d5 {[%emt 0:11:57]} Qa6 {[%emt 0:01:30]} 17. Be3 {[%emt 0:04:01]} Ne5 {[%emt 0:12:48]} 18. Nd2 {[%emt 0:04:25]} f5 {[%emt 0:03:26]} 19. Bxc5 {[%emt 0:01:19]} Bg7 {[%emt 0:01:18]} 20. Bd4 {[%emt 0:03:34]} O-O {[%emt 0:00:32]} 21. Nb3 {[%emt 0:04:20]} f4 {[%emt 0:02:02]} 22. Nc5 {[%emt 0:04:08]} dxc5 {[%emt 0:00:59]} 23. Bxe5 {[%emt 0:00:05]} Bxe5 {[%emt 0:00:08]} 24. Rxe5 {[%emt 0:00:03]} f3 {[%emt 0:00:50]} 25. g3 {[%emt 0:00:21]} Qf6 {[%emt 0:03:49]} 26. Re3 {[%emt 0:02:23]} Qf5 {[%emt 0:14:10]} 27. Qd3 {[%emt 0:02:36]} Qg4 {[%emt 0:02:46]} 28. h3 {[%emt 0:02:36]} Qxh3 {[%emt 0:01:25]} 29. Rxf3 {[%emt 0:00:25]} Nf6 {[%emt 0:00:31]} 30. Qf1 {[%emt 0:01:25]} Qh5 {[%emt 0:00:17]} 31. Rf4 {[%emt 0:02:04]} Nxd5 {[%emt 0:00:59]} 32. Rxf8+ {[%emt 0:01:39]} Kxf8 {[%emt 0:00:00]} 33. Nxd5 {[%emt 0:00:36]} 1/2-1/2

[Event "Polish Youth Ekstraliga 2022"]
[Site "Lublin"]
[Date "2022.07.03"]
[Round "9.26"]
[White "Grzadka, Artur"]
[Black "Wilk, Igor"]
[Result "0-1"]
[ECO "D35"]
[WhiteElo "1718"]
[BlackElo "1824"]
[Annotator "NA RC"]
[PlyCount "100"]
[EventDate "2022.06.24"]
[EventType "team-tourn"]
[EventCountry "POL"]
[SourceTitle "playchess.com"]
[Source "ChessBase"]
[SourceQuality "1"]
[TimeControl "40/5400+30:1800+30"]

1. c4 {[%emt 0:00:03]} e6 {[%emt 0:00:08]} 2. Nc3 {[%emt 0:00:07]} d5 {[%emt 0:00:09]} 3. d4 {[%emt 0:02:02]} Nf6 {[%emt 0:00:13]} 4. cxd5 {[%emt 0:00:26]} exd5 {[%emt 0:00:08]} 5. Bg5 {[%emt 0:00:06]} Be7 {[%emt 0:00:08]} 6. e3 {[%emt 0:00:15]} c6 {[%emt 0:00:19]} 7. Bd3 {[%emt 0:00:14]} O-O {[%emt 0:00:09]} 8. Qc2 {[%emt 0:00:30]} Nbd7 {[%emt 0:00:14]} 9. Nge2 {[%emt 0:01:47]} Re8 {[%emt 0:01:29]} 10. O-O {[%emt 0:00:33]} h6 {[%emt 0:02:13]} 11. Bh4 {[%emt 0:00:42]} Ne4 {[%emt 0:01:25]} 12. Bxe7 {[%emt 0:03:02]} Qxe7 {[%emt 0:00:08]} 13. Nxe4 {[%emt 0:00:08]} dxe4 {[%emt 0:00:07]} 14. Bc4 {[%emt 0:00:09]} Nb6 {[%emt 0:12:29]} 15. Bb3 {[%emt 0:00:33]} Bf5 {[%emt 0:03:46]} 16. Ng3 {[%emt 0:02:16]} Bh7 {[%emt 0:04:31]} 17. Rac1 {[%emt 0:03:03]} Rad8 {[%emt 0:04:48]} 18. Qe2 {[%emt 0:07:16]} Nd5 {[%emt 0:01:40]} 19. a3 {[%emt 0:07:19]} Bg6 {[%emt 0:02:16]} 20. Rc5 {[%emt 0:00:47]} Kh7 {[%emt 0:05:12]} 21. Bxd5 {[%emt 0:25:39]} cxd5 {[%emt 0:00:53]} 22. Rfc1 {[%emt 0:08:38]} Qg5 {[%emt 0:01:15]} 23. Qb5 {[%emt 0:02:30]} Re6 {[%emt 0:03:56]} 24. Qxb7 {[%emt 0:04:23]} Rb6 {[%emt 0:01:11]} 25. Qxa7 {[%emt 0:00:08]} Rxb2 {[%emt 0:00:10]} 26. R5c2 {[%emt 0:01:08]} Rdb8 {[%emt 0:00:56]} 27. Qc5 {[%emt 0:03:48]} R2b5 {[%emt 0:05:46]} 28. Qd6 {[%emt 0:03:26]} Rb1 {[%emt 0:03:31]} 29. Ne2 {[%emt 0:07:13]} Qg4 {[%emt 0:04:52]} 30. Nc3 {[%emt 0:04:38]} R8b2 {[%emt 0:04:43]} 31. h3 {[%emt 0:11:34]} Qc8 {[%emt 0:00:15]} 32. Rxb1 {[%emt 0:01:18]} Rxb1+ {[%emt 0:01:44]} 33. Nxb1 {[%emt 0:00:39]} Qxc2 {[%emt 0:00:02]} 34. Qb4 {[%emt 0:00:05]} Bh5 {[%emt 0:00:53]} 35. Nc3 {[%emt 0:00:38]} Qc1+ {[%emt 0:01:39]} 36. Kh2 {[%emt 0:00:04]} Qf1 {[%emt 0:00:59]} 37. Kg3 {[%emt 0:00:15]} Bf3 {[%emt 0:00:12]} 38. Kf4 {[%emt 0:01:10]} Qxg2 {[%emt 0:00:16]} 39. Ke5 {[%emt 0:00:33]} Qxf2 {[%emt 0:06:15]} 40. Kxd5 {[%emt 0:00:00]} Qxe3 {[%emt 0:00:00]} 41. Kc6 {[%emt 0:04:24]} Qd3 {[%emt 0:03:39]} 42. d5 {[%emt 0:10:58]} e3 {[%emt 0:01:31]} 43. Kc7 {[%emt 0:01:14]} Bxd5 {[%emt 0:01:09]} 44. Nxd5 {[%emt 0:00:14]} Qxd5 {[%emt 0:00:07]} 45. Qb1+ {[%emt 0:01:32]} g6 {[%emt 0:00:08]} 46. Qf1 {[%emt 0:00:08]} Qe5+ {[%emt 0:00:54]} 47. Kb6 {[%emt 0:00:33]} Qe6+ {[%emt 0:00:08]} 48. Kb7 {[%emt 0:00:21]} e2 {[%emt 0:00:37]} 49. Qe1 {[%emt 0:00:05]} Kg8 {[%emt 0:00:17]} 50. a4 {[%emt 0:00:12]} Qd5+ {[%emt 0:00:05]} 0-1

[Event "Polish Youth Ekstraliga 2022"]
[Site "Lublin"]
[Date "2022.07.03"]
[Round "9.27"]
[White "Bartoszczuk, Adam"]
[Black "Przybylski, Jan"]
[Result "0-1"]
[ECO "B81"]
[WhiteElo "1662"]
[BlackElo "1694"]
[Annotator "NA RC"]
[PlyCount "58"]
[EventDate "2022.06.24"]
[EventType "team-tourn"]
[EventCountry "POL"]
[SourceTitle "playchess.com"]
[Source "ChessBase"]
[SourceQuality "1"]
[TimeControl "40/5400+30:1800+30"]

1. e4 {[%emt 0:00:02]} c5 {[%emt 0:00:05]} 2. Nf3 {[%emt 0:00:04]} e6 {[%emt 0:00:05]} 3. d4 {[%emt 0:00:06]} cxd4 {[%emt 0:00:06]} 4. Nxd4 {[%emt 0:00:07]} Nf6 {[%emt 0:00:08]} 5. Nc3 {[%emt 0:00:12]} d6 {[%emt 0:00:07]} 6. g4 {[%emt 0:00:57]} h6 {[%emt 0:00:21]} 7. h4 {[%emt 0:00:11]} Nc6 {[%emt 0:00:21]} 8. Rg1 {[%emt 0:00:54]} d5 {[%emt 0:00:49]} 9. exd5 {[%emt 0:00:42]} Nxd5 {[%emt 0:00:21]} 10. Nxd5 {[%emt 0:01:19]} exd5 {[%emt 0:00:15]} 11. Be3 {[%emt 0:01:13]} Qa5+ {[%emt 0:10:03]} 12. c3 {[%emt 0:04:37]} Be7 {[%emt 0:01:23]} 13. Bg2 {[%emt 0:14:55]} Bxh4 {[%emt 0:21:46]} 14. Qe2 {[%emt 0:08:31]} O-O {[%emt 0:04:17]} 15. Nb3 {[%emt 0:31:19]} Qd8 {[%emt 0:19:42]} 16. O-O-O {[%emt 0:01:23]} Be6 17. f4 {[%emt 0:19:39]} Re8 {[%emt 0:22:27]} 18. Bf3 {[%emt 0:09:50]} Qe7 {[%emt 0:02:00]} 19. Bc5 {[%emt 0:00:16]} Qc7 {[%emt 0:04:34]} 20. Qd2 {[%emt 0:01:22]} Rad8 {[%emt 0:00:44]} 21. Bd4 {[%emt 0:01:04]} Nxd4 {[%emt 0:02:16]} 22. Nxd4 {[%emt 0:00:02]} Bf6 {[%emt 0:04:22]} 23. g5 {[%emt 0:01:45]} hxg5 {[%emt 0:00:33]} 24. fxg5 {[%emt 0:00:13]} Be5 {[%emt 0:00:35]} 25. Qc2 {[%emt 0:01:37]} Bxd4 {[%emt 0:03:35]} 26. Rxd4 {[%emt 0:00:02]} g6 {[%emt 0:00:26]} 27. Rh1 {[%emt 0:00:59]} Qe5 {[%emt 0:00:22]} 28. Rg4 {[%emt 0:00:36]} Bxg4 {[%emt 0:00:52]} 29. Bxg4 {[%emt 0:00:00]} Qxg5+ {[%emt 0:00:42]} 0-1